[Event "Titled Tuesday Blitz April 12 Early 2022"]
[White "Mikhailov, Viacheslav"]
[Black "Lopez, Henry"]
[WhiteFideId "4187369"]
[BlackFideId "5203830"]
[WhiteElo "2381"]
[BlackElo "2177"]
[Result "1-0"]
[Round "02"]
[TimeControl "180+1"]
[Date "2022.04.13"]
[WhiteClock "0:00:08"]
[BlackClock "0:00:11"]

1. Nf3 {[%clk 0:02:59]}  c5 {[%clk 0:02:57]} 2. g3 {[%clk 0:02:58]}  b6 {[%clk 0:02:57]} 3. Bg2 {[%clk 0:02:58]}  Bb7 {[%clk 0:02:58]} 4. O-O {[%clk 0:02:59]}  Nf6 {[%clk 0:02:57]} 5. c3 {[%clk 0:02:59]}  e6 {[%clk 0:02:57]} 6. d4 {[%clk 0:03:00]}  Be7 {[%clk 0:02:57]} 7. a4 {[%clk 0:03:00]}  d6 {[%clk 0:02:57]} 8. a5 {[%clk 0:03:00]}  Nbd7 {[%clk 0:02:56]} 9. Qa4 {[%clk 0:02:58]}  Qc8 {[%clk 0:02:52]} 10. Ne1 {[%clk 0:02:50]}  O-O {[%clk 0:02:45]} 11. a6 {[%clk 0:02:40]}  Bxg2 {[%clk 0:02:43]} 12. Nxg2 {[%clk 0:02:41]}  Qc7 {[%clk 0:02:43]} 13. Na3 {[%clk 0:02:37]}  Rac8 {[%clk 0:02:42]} 14. Nb5 {[%clk 0:02:37]}  Qb8 {[%clk 0:02:42]} 15. Rd1 {[%clk 0:02:33]}  cxd4 {[%clk 0:02:40]} 16. cxd4 {[%clk 0:02:34]}  Qa8 {[%clk 0:02:32]} 17. Bf4 {[%clk 0:02:30]}  e5 {[%clk 0:02:31]} 18. Bg5 {[%clk 0:02:25]}  Rfe8 {[%clk 0:02:23]} 19. Ne3 {[%clk 0:02:20]}  g6 {[%clk 0:02:21]} 20. dxe5 {[%clk 0:02:10]}  dxe5 {[%clk 0:02:19]} 21. Nd6 {[%clk 0:02:09]}  Nc5 {[%clk 0:02:09]} 22. Qh4 {[%clk 0:02:06]}  Bxd6 {[%clk 0:02:09]} 23. Bxf6 {[%clk 0:01:46]}  Bf8 {[%clk 0:02:06]} 24. Nd5 {[%clk 0:01:41]}  Qc6 {[%clk 0:01:57]} 25. Bg5 {[%clk 0:01:19]}  Bg7 {[%clk 0:01:51]} 26. Ne7+ {[%clk 0:01:12]}  Rxe7 {[%clk 0:01:50]} 27. Bxe7 {[%clk 0:01:13]}  Nb3 {[%clk 0:01:43]} 28. Rd6 {[%clk 0:00:56]}  Qc2 {[%clk 0:01:30]} 29. e3 {[%clk 0:00:44]}  Nxa1 {[%clk 0:01:27]} 30. Bf6 {[%clk 0:00:32]}  Bf8 {[%clk 0:01:21]} 31. Rd5 {[%clk 0:00:25]}  Qc1+ {[%clk 0:01:09]} 32. Kg2 {[%clk 0:00:25]}  Qc6 {[%clk 0:01:08]} 33. e4 {[%clk 0:00:26]}  Nb3 {[%clk 0:01:03]} 34. Bxe5 {[%clk 0:00:26]}  Nc5 {[%clk 0:01:02]} 35. Bc3 {[%clk 0:00:18]}  Qe6 {[%clk 0:00:56]} 36. f3 {[%clk 0:00:16]}  Nd7 {[%clk 0:00:38]} 37. Qf4 {[%clk 0:00:13]}  f5 {[%clk 0:00:26]} 38. Qd2 {[%clk 0:00:09]}  Nc5 {[%clk 0:00:20]} 39. Qd4 {[%clk 0:00:08]}  fxe4 {[%clk 0:00:18]} 40. Qh8+ {[%clk 0:00:09]}  Kf7 {[%clk 0:00:18]} 41. Qxh7+ {[%clk 0:00:09]}  Ke8 {[%clk 0:00:15]} 42. Re5 {[%clk 0:00:10]}  exf3+ {[%clk 0:00:15]} 43. Kxf3 {[%clk 0:00:10]}  Qxe5 {[%clk 0:00:12]} 44. Bxe5 {[%clk 0:00:11]}  Ne6 {[%clk 0:00:11]} 45. Qxa7 {[%clk 0:00:08]} 1-0


[Site "https://www.chess.com"]

[Event "Titled Tuesday Blitz April 12 Early 2022"]
[White "Mikhalsky, Vladimir"]
[Black "Marcziter, Dmitrii"]
[WhiteFideId "14144352"]
[BlackFideId "13900765"]
[WhiteElo "2301"]
[BlackElo "2155"]
[Result "0-1"]
[Round "02"]
[TimeControl "180+1"]
[Date "2022.04.13"]
[WhiteClock "0:00:07"]
[BlackClock "0:00:55"]

1. c4 {[%clk 0:02:09]}  e5 {[%clk 0:02:58]} 2. Nc3 {[%clk 0:02:09]}  Nc6 {[%clk 0:02:57]} 3. g3 {[%clk 0:02:08]}  g6 {[%clk 0:02:57]} 4. Bg2 {[%clk 0:02:08]}  Bg7 {[%clk 0:02:58]} 5. e3 {[%clk 0:02:08]}  d6 {[%clk 0:02:58]} 6. Nge2 {[%clk 0:02:08]}  f5 {[%clk 0:02:58]} 7. d3 {[%clk 0:02:08]}  Nf6 {[%clk 0:02:58]} 8. Rb1 {[%clk 0:02:07]}  O-O {[%clk 0:02:57]} 9. b4 {[%clk 0:02:06]}  Nh5 {[%clk 0:02:52]} 10. b5 {[%clk 0:02:03]}  Ne7 {[%clk 0:02:52]} 11. f4 {[%clk 0:02:02]}  exf4 {[%clk 0:02:47]} 12. gxf4 {[%clk 0:02:02]}  c6 {[%clk 0:02:41]} 13. O-O {[%clk 0:01:55]}  Be6 {[%clk 0:02:38]} 14. Nd4 {[%clk 0:01:47]}  Bd7 {[%clk 0:02:36]} 15. Ba3 {[%clk 0:01:42]}  c5 {[%clk 0:02:35]} 16. Nde2 {[%clk 0:01:37]}  Rb8 {[%clk 0:02:34]} 17. Nd5 {[%clk 0:01:36]}  Nxd5 {[%clk 0:02:33]} 18. Bxd5+ {[%clk 0:01:35]}  Kh8 {[%clk 0:02:34]} 19. Ng3 {[%clk 0:01:31]}  Nf6 {[%clk 0:02:25]} 20. Bf3 {[%clk 0:01:22]}  Qe7 {[%clk 0:02:22]} 21. Re1 {[%clk 0:01:20]}  Ng4 {[%clk 0:02:17]} 22. Bxg4 {[%clk 0:00:56]}  fxg4 {[%clk 0:02:17]} 23. Bb2 {[%clk 0:00:56]}  a6 {[%clk 0:02:14]} 24. Bxg7+ {[%clk 0:00:53]}  Qxg7 {[%clk 0:02:14]} 25. Ne4 {[%clk 0:00:44]}  axb5 {[%clk 0:02:11]} 26. Nxd6 {[%clk 0:00:41]}  b4 {[%clk 0:02:08]} 27. Kh1 {[%clk 0:00:37]}  Bc6+ {[%clk 0:02:08]} 28. e4 {[%clk 0:00:37]}  Rbd8 {[%clk 0:02:06]} 29. Nb5 {[%clk 0:00:31]}  Rxf4 {[%clk 0:02:06]} 30. Kg1 {[%clk 0:00:23]}  Bxe4 {[%clk 0:01:48]} 31. dxe4 {[%clk 0:00:17]}  Rxd1 {[%clk 0:01:46]} 32. Rbxd1 {[%clk 0:00:18]}  h5 {[%clk 0:01:44]} 33. e5 {[%clk 0:00:16]}  Qe7 {[%clk 0:01:42]} 34. e6 {[%clk 0:00:16]}  Rf8 {[%clk 0:01:24]} 35. Rd7 {[%clk 0:00:14]}  Qf6 {[%clk 0:01:22]} 36. Rd2 {[%clk 0:00:11]}  Re8 {[%clk 0:01:15]} 37. Nc7 {[%clk 0:00:11]}  Qf4 {[%clk 0:01:09]} 38. Nxe8 {[%clk 0:00:10]}  Qxd2 {[%clk 0:01:08]} 39. Kf1 {[%clk 0:00:10]}  Qf4+ {[%clk 0:01:04]} 40. Kg1 {[%clk 0:00:10]}  Qd4+ {[%clk 0:01:03]} 41. Kg2 {[%clk 0:00:09]}  Qd2+ {[%clk 0:01:00]} 42. Kf1 {[%clk 0:00:10]}  Qd3+ {[%clk 0:00:59]} 43. Kg2 {[%clk 0:00:09]}  Qf3+ {[%clk 0:00:58]} 44. Kg1 {[%clk 0:00:09]}  h4 {[%clk 0:00:57]} 45. e7 {[%clk 0:00:07]}  h3 {[%clk 0:00:55]} 0-1


[Site "https://www.chess.com"]

[Event "Titled Tuesday Blitz April 12 Early 2022"]
[White "Namitbir Singh Walia"]
[Black "Dang, Hoang Son"]
[WhiteFideId "35071068"]
[BlackFideId "12402435"]
[WhiteElo "1565"]
[BlackElo "2252"]
[Result "0-1"]
[Round "02"]
[TimeControl "180+1"]
[Date "2022.04.13"]
[WhiteClock "0:00:01"]
[BlackClock "0:00:31"]

1. d4 {[%clk 0:03:00]}  Nf6 {[%clk 0:02:59]} 2. c4 {[%clk 0:03:00]}  g6 {[%clk 0:03:00]} 3. Nf3 {[%clk 0:03:00]}  Bg7 {[%clk 0:03:00]} 4. g3 {[%clk 0:03:00]}  O-O {[%clk 0:03:00]} 5. Bg2 {[%clk 0:03:00]}  d6 {[%clk 0:03:00]} 6. O-O {[%clk 0:02:59]}  Nbd7 {[%clk 0:03:01]} 7. Nc3 {[%clk 0:02:57]}  e5 {[%clk 0:03:01]} 8. e4 {[%clk 0:02:58]}  exd4 {[%clk 0:03:01]} 9. Nxd4 {[%clk 0:02:59]}  Nc5 {[%clk 0:03:02]} 10. Re1 {[%clk 0:02:56]}  Ng4 {[%clk 0:03:02]} 11. h3 {[%clk 0:02:39]}  Ne5 {[%clk 0:03:01]} 12. Bf1 {[%clk 0:02:31]}  Ne6 {[%clk 0:02:56]} 13. Be3 {[%clk 0:01:56]}  Nxd4 {[%clk 0:02:32]} 14. Bxd4 {[%clk 0:01:53]}  Be6 {[%clk 0:02:29]} 15. Rc1 {[%clk 0:01:25]}  Qd7 {[%clk 0:02:11]} 16. Kh2 {[%clk 0:00:49]}  f5 {[%clk 0:02:00]} 17. f4 {[%clk 0:00:37]}  Nf3+ {[%clk 0:01:58]} 18. Qxf3 {[%clk 0:00:36]}  Bxd4 {[%clk 0:01:59]} 19. exf5 {[%clk 0:00:33]}  Rxf5 {[%clk 0:01:45]} 20. Qe4 {[%clk 0:00:31]}  Bxc3 {[%clk 0:01:25]} 21. Rxc3 {[%clk 0:00:32]}  Re8 {[%clk 0:01:20]} 22. Rce3 {[%clk 0:00:22]}  b6 {[%clk 0:01:13]} 23. c5 {[%clk 0:00:18]}  bxc5 {[%clk 0:01:09]} 24. g4 {[%clk 0:00:11]}  Rff8 {[%clk 0:01:03]} 25. a4 {[%clk 0:00:05]}  d5 {[%clk 0:00:58]} 26. Qc2 {[%clk 0:00:04]}  c4 {[%clk 0:00:50]} 27. b3 {[%clk 0:00:03]}  cxb3 {[%clk 0:00:49]} 28. Qxb3 {[%clk 0:00:03]}  Rxf4 {[%clk 0:00:41]} 29. Bg2 {[%clk 0:00:01]}  c6 {[%clk 0:00:39]} 30. Re5 {[%clk 0:00:02]}  Qd6 {[%clk 0:00:37]} 31. Qg3 {[%clk 0:00:03]}  Rff8 {[%clk 0:00:32]} 32. Qf2 {[%clk 0:00:01]}  Rxf2 {[%clk 0:00:31]} 0-1


[Site "https://www.chess.com"]

[Event "Titled Tuesday Blitz April 12 Early 2022"]
[White "Nguyen Hong Nhung"]
[Black "Allahverdiyeva, Ayan"]
[WhiteFideId "12412201"]
[BlackFideId "13412590"]
[WhiteElo "1758"]
[BlackElo "1910"]
[Result "1-0"]
[Round "02"]
[TimeControl "180+1"]
[Date "2022.04.13"]
[WhiteClock "0:00:25"]
[BlackClock "0:00:04"]

1. e4 {[%clk 0:03:00]}  c5 {[%clk 0:02:59]} 2. Nc3 {[%clk 0:03:00]}  Nc6 {[%clk 0:02:58]} 3. Bb5 {[%clk 0:02:59]}  Nd4 {[%clk 0:02:53]} 4. Bc4 {[%clk 0:02:59]}  d6 {[%clk 0:02:43]} 5. Nf3 {[%clk 0:02:55]}  g6 {[%clk 0:02:15]} 6. Nxd4 {[%clk 0:02:50]}  cxd4 {[%clk 0:02:14]} 7. Qf3 {[%clk 0:02:50]}  Nf6 {[%clk 0:02:07]} 8. Nb5 {[%clk 0:02:37]}  e5 {[%clk 0:02:01]} 9. d3 {[%clk 0:02:29]}  Bg4 {[%clk 0:01:59]} 10. Qg3 {[%clk 0:02:27]}  h6 {[%clk 0:01:44]} 11. Na3 {[%clk 0:02:08]}  Qc8 {[%clk 0:01:39]} 12. h3 {[%clk 0:01:51]}  Bd7 {[%clk 0:01:34]} 13. Bd2 {[%clk 0:01:37]}  Rb8 {[%clk 0:01:08]} 14. O-O {[%clk 0:01:25]}  Be7 {[%clk 0:00:54]} 15. Bb3 {[%clk 0:01:21]}  Nh5 {[%clk 0:00:44]} 16. Qf3 {[%clk 0:01:21]}  Rh7 {[%clk 0:00:38]} 17. c3 {[%clk 0:01:05]}  dxc3 {[%clk 0:00:35]} 18. Bxc3 {[%clk 0:01:00]}  Nf4 {[%clk 0:00:30]} 19. Rac1 {[%clk 0:00:55]}  Qd8 {[%clk 0:00:26]} 20. Bd2 {[%clk 0:00:53]}  g5 {[%clk 0:00:19]} 21. Bxf4 {[%clk 0:00:48]}  gxf4 {[%clk 0:00:18]} 22. d4 {[%clk 0:00:46]}  Bf6 {[%clk 0:00:17]} 23. Nc4 {[%clk 0:00:45]}  Qe7 {[%clk 0:00:17]} 24. Rfd1 {[%clk 0:00:41]}  Rg7 {[%clk 0:00:12]} 25. dxe5 {[%clk 0:00:38]}  Bxe5 {[%clk 0:00:12]} 26. Nxe5 {[%clk 0:00:32]}  dxe5 {[%clk 0:00:13]} 27. Rc7 {[%clk 0:00:31]}  Rd8 {[%clk 0:00:10]} 28. Ba4 {[%clk 0:00:25]}  Bxa4 {[%clk 0:00:04]} 29. Rxe7+ {[%clk 0:00:25]}  Kxe7 {[%clk 0:00:04]} 30. Qa3+ {[%clk 0:00:25]} 1-0


[Site "https://www.chess.com"]

[Event "Titled Tuesday Blitz April 12 Early 2022"]
[White "Noboa Silva, Kevin"]
[Black "Muradov, Soltan"]
[WhiteFideId "3618471"]
[BlackFideId "14002108"]
[WhiteElo "2172"]
[BlackElo "1854"]
[Result "1-0"]
[Round "02"]
[TimeControl "180+1"]
[Date "2022.04.13"]
[WhiteClock "0:00:49"]
[BlackClock "0:00:11"]

1. e4 {[%clk 0:03:00]}  e5 {[%clk 0:02:58]} 2. Nf3 {[%clk 0:02:57]}  Nf6 {[%clk 0:02:58]} 3. Nxe5 {[%clk 0:02:57]}  d6 {[%clk 0:02:58]} 4. Nf3 {[%clk 0:02:58]}  Nxe4 {[%clk 0:02:58]} 5. Nc3 {[%clk 0:02:58]}  Nxc3 {[%clk 0:02:59]} 6. dxc3 {[%clk 0:02:59]}  Be7 {[%clk 0:03:00]} 7. Be3 {[%clk 0:02:57]}  Nc6 {[%clk 0:03:00]} 8. Qd2 {[%clk 0:02:57]}  Be6 {[%clk 0:03:00]} 9. Bb5 {[%clk 0:02:52]}  a6 {[%clk 0:02:58]} 10. Bxc6+ {[%clk 0:02:51]}  bxc6 {[%clk 0:02:59]} 11. O-O {[%clk 0:02:51]}  c5 {[%clk 0:02:57]} 12. Rfe1 {[%clk 0:02:51]}  O-O {[%clk 0:02:57]} 13. b3 {[%clk 0:02:50]}  Bf6 {[%clk 0:02:56]} 14. Rad1 {[%clk 0:02:50]}  Bg4 {[%clk 0:02:54]} 15. Qe2 {[%clk 0:02:46]}  Bxc3 {[%clk 0:02:53]} 16. Rf1 {[%clk 0:02:42]}  Re8 {[%clk 0:02:53]} 17. h3 {[%clk 0:02:40]}  Bh5 {[%clk 0:02:53]} 18. g4 {[%clk 0:02:39]}  Bg6 {[%clk 0:02:54]} 19. Qc4 {[%clk 0:02:37]}  Bf6 {[%clk 0:02:51]} 20. Rfe1 {[%clk 0:02:31]}  h6 {[%clk 0:02:46]} 21. Bxc5 {[%clk 0:02:28]}  Rxe1+ {[%clk 0:02:14]} 22. Nxe1 {[%clk 0:02:26]}  Qd7 {[%clk 0:02:15]} 23. Bd4 {[%clk 0:02:22]}  Be7 {[%clk 0:02:06]} 24. Ng2 {[%clk 0:02:18]}  Qe6 {[%clk 0:01:36]} 25. Qc6 {[%clk 0:02:04]}  Be4 {[%clk 0:01:31]} 26. Qc3 {[%clk 0:01:51]}  c5 {[%clk 0:01:11]} 27. Bxg7 {[%clk 0:01:36]}  Bxc2 {[%clk 0:00:34]} 28. Re1 {[%clk 0:01:16]}  Qg6 {[%clk 0:00:24]} 29. Rxe7 {[%clk 0:01:10]}  Qxg7 {[%clk 0:00:24]} 30. Qxc2 {[%clk 0:01:09]}  Qa1+ {[%clk 0:00:23]} 31. Re1 {[%clk 0:01:07]}  Qf6 {[%clk 0:00:23]} 32. Ne3 {[%clk 0:00:57]}  Re8 {[%clk 0:00:12]} 33. Qd2 {[%clk 0:00:55]}  Qf3 {[%clk 0:00:11]} 34. Nf5 {[%clk 0:00:48]}  Rxe1+ {[%clk 0:00:10]} 35. Qxe1 {[%clk 0:00:49]}  Qxh3 {[%clk 0:00:11]} 36. Qe8+ {[%clk 0:00:49]}  Kh7 {[%clk 0:00:11]} 37. Qxf7+ {[%clk 0:00:49]} 1-0


[Site "https://www.chess.com"]

[Event "Titled Tuesday Blitz April 12 Early 2022"]
[White "Nozdrachev, Leonid"]
[Black "Legenia, Artem"]
[WhiteFideId "24113433"]
[BlackFideId "14136945"]
[WhiteElo "2242"]
[BlackElo "1936"]
[Result "0-1"]
[Round "02"]
[TimeControl "180+1"]
[Date "2022.04.13"]
[WhiteClock "0:00:31"]
[BlackClock "0:00:08"]

1. e4 {[%clk 0:02:58]}  d5 {[%clk 0:02:55]} 2. Nc3 {[%clk 0:02:55]}  c6 {[%clk 0:02:52]} 3. Nf3 {[%clk 0:02:52]}  dxe4 {[%clk 0:02:50]} 4. Nxe4 {[%clk 0:02:53]}  Nf6 {[%clk 0:02:51]} 5. Qe2 {[%clk 0:02:51]}  Nxe4 {[%clk 0:02:47]} 6. Qxe4 {[%clk 0:02:52]}  Nd7 {[%clk 0:02:47]} 7. Bc4 {[%clk 0:02:52]}  Nf6 {[%clk 0:02:47]} 8. Ne5 {[%clk 0:02:52]}  e6 {[%clk 0:02:46]} 9. Qe2 {[%clk 0:02:52]}  Bd6 {[%clk 0:02:45]} 10. b3 {[%clk 0:02:47]}  O-O {[%clk 0:02:45]} 11. Bb2 {[%clk 0:02:46]}  Nd7 {[%clk 0:02:35]} 12. Ng4 {[%clk 0:02:38]}  e5 {[%clk 0:02:23]} 13. O-O-O {[%clk 0:02:35]}  b5 {[%clk 0:02:16]} 14. Bd3 {[%clk 0:02:30]}  f5 {[%clk 0:02:16]} 15. Nxe5 {[%clk 0:02:26]}  Nxe5 {[%clk 0:02:08]} 16. Bxe5 {[%clk 0:02:27]}  Re8 {[%clk 0:02:06]} 17. f4 {[%clk 0:02:25]}  Bxe5 {[%clk 0:02:06]} 18. fxe5 {[%clk 0:02:26]}  Qd4 {[%clk 0:02:04]} 19. Kb1 {[%clk 0:02:23]}  Rxe5 {[%clk 0:01:59]} 20. Qf3 {[%clk 0:02:22]}  Qd5 {[%clk 0:01:46]} 21. Rde1 {[%clk 0:02:01]}  Rxe1+ {[%clk 0:01:40]} 22. Rxe1 {[%clk 0:02:02]}  Qxf3 {[%clk 0:01:38]} 23. gxf3 {[%clk 0:02:02]}  Kf7 {[%clk 0:01:38]} 24. Re5 {[%clk 0:02:02]}  g6 {[%clk 0:01:37]} 25. a4 {[%clk 0:01:55]}  a6 {[%clk 0:01:30]} 26. Kb2 {[%clk 0:01:54]}  Bd7 {[%clk 0:01:30]} 27. Kc3 {[%clk 0:01:48]}  Kf6 {[%clk 0:01:29]} 28. Kd4 {[%clk 0:01:35]}  g5 {[%clk 0:01:21]} 29. Re1 {[%clk 0:01:30]}  h5 {[%clk 0:01:20]} 30. Kc5 {[%clk 0:01:29]}  g4 {[%clk 0:01:15]} 31. fxg4 {[%clk 0:01:29]}  hxg4 {[%clk 0:01:15]} 32. a5 {[%clk 0:01:26]}  Rh8 {[%clk 0:01:08]} 33. Kb6 {[%clk 0:01:21]}  Rxh2 {[%clk 0:01:06]} 34. Kxa6 {[%clk 0:01:21]}  Rh8 {[%clk 0:00:28]} 35. Kb7 {[%clk 0:01:19]}  Bc8+ {[%clk 0:00:21]} 36. Kxc6 {[%clk 0:01:17]}  Kg5 {[%clk 0:00:20]} 37. Bxb5 {[%clk 0:01:14]}  g3 {[%clk 0:00:20]} 38. a6 {[%clk 0:01:11]}  Rh6+ {[%clk 0:00:16]} 39. Kc7 {[%clk 0:01:04]}  Bxa6 {[%clk 0:00:15]} 40. Bxa6 {[%clk 0:01:05]}  Rxa6 {[%clk 0:00:15]} 41. b4 {[%clk 0:01:02]}  f4 {[%clk 0:00:14]} 42. b5 {[%clk 0:01:02]}  Ra2 {[%clk 0:00:15]} 43. c4 {[%clk 0:00:58]}  f3 {[%clk 0:00:13]} 44. Rb1 {[%clk 0:00:52]}  g2 {[%clk 0:00:11]} 45. b6 {[%clk 0:00:51]}  f2 {[%clk 0:00:10]} 46. b7 {[%clk 0:00:50]}  Ra7 {[%clk 0:00:10]} 47. Kb8 {[%clk 0:00:37]}  Rxb7+ {[%clk 0:00:09]} 48. Rxb7 {[%clk 0:00:38]}  f1=Q {[%clk 0:00:10]} 49. c5 {[%clk 0:00:36]}  g1=Q {[%clk 0:00:09]} 50. Rg7+ {[%clk 0:00:35]}  Kh6 {[%clk 0:00:08]} 51. Rxg1 {[%clk 0:00:36]}  Qxg1 {[%clk 0:00:08]} 52. d4 {[%clk 0:00:31]}  Qxd4 {[%clk 0:00:08]} 53. c6 {[%clk 0:00:30]}  Qb6+ {[%clk 0:00:07]} 54. Ka8 {[%clk 0:00:30]}  Qxc6+ {[%clk 0:00:08]} 55. Kb8 {[%clk 0:00:31]}  Kg6 {[%clk 0:00:08]} 56. Ka7 {[%clk 0:00:31]}  Qb5 {[%clk 0:00:08]} 57. Ka8 {[%clk 0:00:31]}  Kf6 {[%clk 0:00:08]} 0-1


[Site "https://www.chess.com"]

[Event "Titled Tuesday Blitz April 12 Early 2022"]
[White "Odegov, Artem"]
[Black "Steil-Antoni, Fiona"]
[WhiteFideId "34183644"]
[BlackFideId "4001249"]
[WhiteElo "2286"]
[BlackElo "2059"]
[Result "1-0"]
[Round "02"]
[TimeControl "180+1"]
[Date "2022.04.13"]
[WhiteClock "0:01:48"]
[BlackClock "0:00:46"]

1. d4 {[%clk 0:02:56]}  d6 {[%clk 0:02:54]} 2. Nf3 {[%clk 0:02:51]}  Bg4 {[%clk 0:02:47]} 3. c4 {[%clk 0:02:48]}  Nd7 {[%clk 0:02:42]} 4. Nc3 {[%clk 0:02:44]}  e5 {[%clk 0:02:40]} 5. d5 {[%clk 0:02:39]}  Bxf3 {[%clk 0:02:37]} 6. exf3 {[%clk 0:02:40]}  f5 {[%clk 0:02:36]} 7. Bd3 {[%clk 0:02:40]}  g6 {[%clk 0:02:35]} 8. O-O {[%clk 0:02:40]}  Bg7 {[%clk 0:02:36]} 9. Re1 {[%clk 0:02:41]}  Ne7 {[%clk 0:02:32]} 10. Bg5 {[%clk 0:02:40]}  O-O {[%clk 0:02:28]} 11. Qd2 {[%clk 0:02:39]}  Qe8 {[%clk 0:02:22]} 12. Nb5 {[%clk 0:02:32]}  Qd8 {[%clk 0:01:58]} 13. Bxe7 {[%clk 0:02:23]}  Qxe7 {[%clk 0:01:59]} 14. Nxc7 {[%clk 0:02:24]}  Rac8 {[%clk 0:01:51]} 15. Ne6 {[%clk 0:02:23]}  Rf7 {[%clk 0:01:52]} 16. Re2 {[%clk 0:02:16]}  Nc5 {[%clk 0:01:48]} 17. Nxc5 {[%clk 0:02:14]}  Rxc5 {[%clk 0:01:49]} 18. Rae1 {[%clk 0:02:14]}  Qc7 {[%clk 0:01:42]} 19. b3 {[%clk 0:02:10]}  a5 {[%clk 0:01:29]} 20. h4 {[%clk 0:02:09]}  Rf8 {[%clk 0:01:24]} 21. h5 {[%clk 0:02:09]}  b6 {[%clk 0:01:16]} 22. g3 {[%clk 0:02:04]}  Qf7 {[%clk 0:01:11]} 23. Kg2 {[%clk 0:02:01]}  g5 {[%clk 0:01:01]} 24. Qxg5 {[%clk 0:01:51]}  Kh8 {[%clk 0:00:48]} 25. h6 {[%clk 0:01:48]}  Bf6 {[%clk 0:00:46]} 26. Qxf5 {[%clk 0:01:48]} 1-0


[Site "https://www.chess.com"]

[Event "Titled Tuesday Blitz April 12 Early 2022"]
[White "Pacheco Lugo, Alejandro Jose"]
[Black "Papadiamandis, Elliot"]
[WhiteFideId "3903745"]
[BlackFideId "36074160"]
[WhiteElo "2146"]
[BlackElo "2088"]
[Result "0-1"]
[Round "02"]
[TimeControl "180+1"]
[Date "2022.04.13"]
[WhiteClock "0:01:09"]
[BlackClock "0:01:27"]

1. e4 {[%clk 0:02:58]}  d5 {[%clk 0:03:00]} 2. exd5 {[%clk 0:02:57]}  Nf6 {[%clk 0:03:00]} 3. Nf3 {[%clk 0:02:57]}  Qxd5 {[%clk 0:03:00]} 4. Nc3 {[%clk 0:02:56]}  Qh5 {[%clk 0:03:01]} 5. Be2 {[%clk 0:02:55]}  Bg4 {[%clk 0:03:00]} 6. O-O {[%clk 0:02:56]}  Nc6 {[%clk 0:03:01]} 7. h3 {[%clk 0:02:52]}  O-O-O {[%clk 0:03:01]} 8. Nh2 {[%clk 0:02:43]}  Bxe2 {[%clk 0:02:59]} 9. Qxe2 {[%clk 0:02:44]}  Nd4 {[%clk 0:02:42]} 10. Qc4 {[%clk 0:02:24]}  Nxc2 {[%clk 0:02:39]} 11. Nb5 {[%clk 0:02:19]}  Rd7 {[%clk 0:02:19]} 12. Nxa7+ {[%clk 0:02:14]}  Kb8 {[%clk 0:02:19]} 13. Qxc2 {[%clk 0:02:13]}  Kxa7 {[%clk 0:02:19]} 14. d4 {[%clk 0:02:13]}  e6 {[%clk 0:02:18]} 15. Be3 {[%clk 0:02:14]}  Qd5 {[%clk 0:02:13]} 16. a4 {[%clk 0:02:08]}  g5 {[%clk 0:02:10]} 17. a5 {[%clk 0:02:05]}  h5 {[%clk 0:02:06]} 18. Nf3 {[%clk 0:01:59]}  g4 {[%clk 0:02:03]} 19. hxg4 {[%clk 0:01:56]}  hxg4 {[%clk 0:02:03]} 20. Ne5 {[%clk 0:01:56]}  Bd6 {[%clk 0:02:03]} 21. Qc4 {[%clk 0:01:36]}  Qxc4 {[%clk 0:01:58]} 22. Nxc4 {[%clk 0:01:34]}  Bh2+ {[%clk 0:01:58]} 23. Kh1 {[%clk 0:01:35]}  Ne4 {[%clk 0:01:43]} 24. a6 {[%clk 0:01:13]}  b6 {[%clk 0:01:42]} 25. Na3 {[%clk 0:01:14]}  c6 {[%clk 0:01:40]} 26. b4 {[%clk 0:01:10]}  Rd5 {[%clk 0:01:31]} 27. b5 {[%clk 0:01:09]}  Rdh5 {[%clk 0:01:27]} 0-1


[Site "https://www.chess.com"]

[Event "Titled Tuesday Blitz April 12 Early 2022"]
[White "Padmini, Rout"]
[Black "Gaehwiler, Gabriel"]
[WhiteFideId "5029295"]
[BlackFideId "1314530"]
[WhiteElo "2181"]
[BlackElo "2383"]
[Result "0-1"]
[Round "02"]
[TimeControl "180+1"]
[Date "2022.04.13"]
[WhiteClock "0:00:01"]
[BlackClock "0:01:34"]

1. Nf3 {[%clk 0:03:00]}  Nf6 {[%clk 0:02:58]} 2. g3 {[%clk 0:03:00]}  b6 {[%clk 0:02:58]} 3. Bg2 {[%clk 0:03:00]}  Bb7 {[%clk 0:02:59]} 4. O-O {[%clk 0:03:01]}  g6 {[%clk 0:02:59]} 5. d3 {[%clk 0:02:58]}  Bg7 {[%clk 0:03:00]} 6. e4 {[%clk 0:02:54]}  O-O {[%clk 0:03:00]} 7. c4 {[%clk 0:02:50]}  c5 {[%clk 0:03:00]} 8. Nc3 {[%clk 0:02:50]}  d6 {[%clk 0:03:00]} 9. Bf4 {[%clk 0:02:47]}  Nc6 {[%clk 0:03:00]} 10. Qd2 {[%clk 0:02:47]}  Re8 {[%clk 0:02:56]} 11. Bh6 {[%clk 0:02:44]}  Ng4 {[%clk 0:02:52]} 12. Bxg7 {[%clk 0:02:37]}  Kxg7 {[%clk 0:02:52]} 13. d4 {[%clk 0:02:30]}  e5 {[%clk 0:02:48]} 14. dxc5 {[%clk 0:02:17]}  dxc5 {[%clk 0:02:45]} 15. Nd5 {[%clk 0:02:17]}  Nd4 {[%clk 0:02:32]} 16. Rfe1 {[%clk 0:02:10]}  Nf6 {[%clk 0:02:15]} 17. Rac1 {[%clk 0:01:21]}  Rc8 {[%clk 0:02:13]} 18. Rc3 {[%clk 0:01:16]}  Bxd5 {[%clk 0:02:03]} 19. exd5 {[%clk 0:01:14]}  Qd6 {[%clk 0:01:58]} 20. Rce3 {[%clk 0:00:37]}  Ng4 {[%clk 0:01:45]} 21. Ra3 {[%clk 0:00:37]}  Rc7 {[%clk 0:01:43]} 22. Bh3 {[%clk 0:00:19]}  Nf6 {[%clk 0:01:41]} 23. Rae3 {[%clk 0:00:16]}  Rce7 {[%clk 0:01:40]} 24. Nxd4 {[%clk 0:00:03]}  cxd4 {[%clk 0:01:39]} 25. Ra3 {[%clk 0:00:03]}  Qc5 {[%clk 0:01:35]} 26. Ra4 {[%clk 0:00:01]}  e4 {[%clk 0:01:34]} 0-1


[Site "https://www.chess.com"]

[Event "Titled Tuesday Blitz April 12 Early 2022"]
[White "Pakhomov, Egor"]
[Black "Liyanage, Ranindu Dilshan"]
[WhiteFideId "24129542"]
[BlackFideId "9915834"]
[WhiteElo "2435"]
[BlackElo "1858"]
[Result "0-1"]
[Round "02"]
[TimeControl "180+1"]
[Date "2022.04.13"]
[WhiteClock "0:00:07"]
[BlackClock "0:02:00"]

1. d4 {[%clk 0:02:55]}  Nf6 {[%clk 0:03:00]} 2. c4 {[%clk 0:02:51]}  e6 {[%clk 0:03:00]} 3. Nc3 {[%clk 0:02:45]}  Bb4 {[%clk 0:02:59]} 4. e3 {[%clk 0:02:33]}  O-O {[%clk 0:02:58]} 5. Ne2 {[%clk 0:02:26]}  c6 {[%clk 0:02:58]} 6. Qc2 {[%clk 0:02:22]}  d5 {[%clk 0:02:56]} 7. Nf4 {[%clk 0:02:18]}  Bd6 {[%clk 0:02:52]} 8. g3 {[%clk 0:02:12]}  Nbd7 {[%clk 0:02:51]} 9. Bd2 {[%clk 0:02:06]}  dxc4 {[%clk 0:02:49]} 10. Bxc4 {[%clk 0:02:02]}  e5 {[%clk 0:02:49]} 11. dxe5 {[%clk 0:01:54]}  Nxe5 {[%clk 0:02:50]} 12. Be2 {[%clk 0:01:50]}  g5 {[%clk 0:02:48]} 13. Nd3 {[%clk 0:01:46]}  Bf5 {[%clk 0:02:48]} 14. O-O-O {[%clk 0:01:34]}  Bc7 {[%clk 0:02:28]} 15. Be1 {[%clk 0:01:27]}  Qe7 {[%clk 0:02:28]} 16. Qb3 {[%clk 0:01:02]}  Rfd8 {[%clk 0:02:11]} 17. Nxe5 {[%clk 0:00:48]}  Qxe5 {[%clk 0:02:10]} 18. Bc4 {[%clk 0:00:31]}  Rxd1+ {[%clk 0:02:05]} 19. Nxd1 {[%clk 0:00:28]}  Qe4 {[%clk 0:02:04]} 20. Rf1 {[%clk 0:00:11]}  Qb1+ {[%clk 0:02:01]} 21. Kd2 {[%clk 0:00:08]}  Rd8+ {[%clk 0:02:01]} 22. Ke2 {[%clk 0:00:07]}  Bc2 {[%clk 0:02:00]} 0-1


[Site "https://www.chess.com"]